bitfinex/quotes_BTCUSD_20241111
["timestamp","ask_amount","ask_price","bid_price","bid_amount"]
[1731296398184,0.73226021,81266.0,81265.0,0.000842]
[1731296398419,0.56441821,81266.0,81265.0,0.000842]
[1731296398621,0.66286021,81266.0,81265.0,0.000842]
[1731296401383,0.56441821,81266.0,81265.0,0.000842]
[1731296401597,0.55941821,81266.0,81265.0,0.000842]
[1731296404422,0.48291821,81266.0,81265.0,0.099285]
[1731296404629,0.48291821,81266.0,81265.0,0.000842]
[1731296407947,0.73346021,81266.0,81265.0,0.000842]
[1731296408205,0.85940242,81266.0,81265.0,0.000842]
[1731296408413,0.89602775,81266.0,81265.0,0.000842]
[1731296408550,0.77008554,81266.0,81265.0,0.000842]
[1731296408756,0.73346021,81266.0,81265.0,0.000842]
[1731296409767,0.74492598,81266.0,81265.0,0.000842]
[1731296410174,0.63001821,81266.0,81265.0,0.000842]
[1731296410395,0.48291821,81266.0,81265.0,0.000842]
[1731296410804,0.48291821,81266.0,81265.0,0.099285]
[1731296410933,0.48291821,81266.0,81265.0,0.36152721]
[1731296413049,0.48291821,81266.0,81265.0,0.104285]
[1731296414044,0.48291821,81266.0,81265.0,0.005842]
[1731296414643,0.48291821,81266.0,81265.0,0.104285]
[1731296416083,0.48291821,81266.0,81265.0,0.005842]
[1731296417376,0.48291821,81266.0,81265.0,0.104285]
[1731296423879,0.48291821,81266.0,81265.0,0.005842]
[1731296424245,0.48291821,81266.0,81265.0,0.104285]
[1731296427496,0.48291821,81266.0,81265.0,0.10660957]
[1731296427700,0.48291821,81266.0,81265.0,0.10604796]
[1731296430759,0.48291821,81266.0,81265.0,0.104285]
[1731296431925,0.49466875,81266.0,81265.0,0.104285]
[1731296433572,0.57076875,81266.0,81265.0,0.005842]
[1731296433778,0.57076875,81266.0,81265.0,0.104285]
[1731296433982,0.49466875,81266.0,81265.0,0.104285]
[1731296435116,0.49466875,81266.0,81265.0,0.30912721]
[1731296435543,0.48291821,81266.0,81265.0,0.30912721]
[1731296435764,0.48291821,81266.0,81265.0,0.23022721]
[1731296435992,0.49470242,81266.0,81265.0,0.23022721]
[1731296436884,0.49470242,81266.0,81265.0,0.104285]
[1731296437640,0.49470242,81266.0,81265.0,0.000842]
[1731296438286,0.49470242,81266.0,81265.0,0.104285]
[1731296438752,0.49470242,81266.0,81265.0,0.099285]
[1731296438959,0.49470242,81266.0,81265.0,0.104285]
[1731296439507,0.49470242,81266.0,81265.0,0.099285]
[1731296439762,0.49470242,81266.0,81265.0,0.104285]
[1731296442395,0.48291821,81266.0,81265.0,0.104285]
[1731296442727,0.49471368,81266.0,81265.0,0.104285]
[1731296445646,0.49471368,81266.0,81265.0,0.23022721]
[1731296449583,0.49471368,81266.0,81265.0,0.104285]
[1731296450246,0.48291821,81266.0,81265.0,0.104285]
[1731296450609,0.49471368,81266.0,81265.0,0.104285]
[1731296454289,0.49471368,81266.0,81265.0,0.23022721]
[1731296454881,0.49471368,81266.0,81265.0,0.40874125]
[1731296455930,0.48291821,81266.0,81265.0,0.40874125]
[1731296456136,0.48291821,81266.0,81265.0,0.54557071]
[1731296456340,0.37168361,81266.0,81265.0,0.50531875]
[1731296456544,0.000697,81281.0,81280.0,0.332125]
[1731296456749,0.000697,81281.0,81280.0,0.59618971]
[1731296458034,0.000697,81281.0,81280.0,0.64501874]
[1731296458035,1e-06,81281.0,81280.0,0.64501874]
[1731296458237,1e-06,81281.0,81280.0,0.64650733]
[1731296458449,0.000697,81292.0,81291.0,0.335111]
[1731296458654,0.000697,81292.0,81291.0,0.60317571]
[1731296458897,0.000697,81292.0,81291.0,0.60117571]
[1731296459355,0.000697,81292.0,81291.0,0.59617571]
[1731296459563,0.000697,81292.0,81291.0,0.22935321]
[1731296459892,0.000697,81292.0,81291.0,0.32935321]
[1731296460326,0.000697,81292.0,81291.0,0.34031788]
[1731296460859,0.000697,81292.0,81291.0,0.22935321]
[1731296463557,0.000697,81292.0,81291.0,0.30985321]
[1731296464469,0.000697,81292.0,81291.0,0.41685321]
[1731296465192,0.000697,81292.0,81291.0,0.55497571]
[1731296466263,0.000697,81292.0,81291.0,0.55997571]
[1731296466464,0.000697,81292.0,81291.0,0.56197571]
[1731296466676,0.0774,81324.0,81297.0,0.007]
[1731296466903,0.0774,81324.0,81297.0,0.47146871]
[1731296467877,0.0774,81324.0,81297.0,0.32934621]
[1731296469769,0.1401225,81322.0,81297.0,0.34034097]
[1731296470330,0.1401225,81322.0,81297.0,0.34082923]
[1731296470533,0.1401225,81323.0,81297.0,0.34082923]
[1731296470743,0.0824,81324.0,81297.0,0.34082923]
[1731296472382,0.1401225,81329.0,81297.0,0.34082923]
[1731296472383,0.0467,81305.0,81297.0,0.34082923]
[1731296472592,0.005,81320.0,81297.0,0.34082923]
[1731296472593,0.0774,81311.0,81297.0,0.34082923]
[1731296473886,0.0774,81311.0,81297.0,0.34034097]
[1731296474586,0.18421521,81315.0,81297.0,0.41544097]
[1731296475631,0.0825,81318.0,81297.0,0.41544097]
[1731296475632,0.0825,81318.0,81317.0,0.09838]
[1731296475995,0.09267548,81318.0,81317.0,0.09838]
[1731296476408,0.0825,81318.0,81317.0,0.09838]
[1731296490799,0.084184,81318.0,81317.0,0.09838]
[1731296496868,0.084184,81318.0,81291.0,0.005]
[1731296496869,0.084184,81318.0,81310.0,0.005]
[1731296497105,0.09437486,81318.0,81311.0,0.18421521]
[1731296497328,0.09437486,81318.0,81314.0,0.098383]
[1731296498048,0.023,81317.0,81314.0,0.098383]
[1731296498354,0.023,81317.0,81316.0,0.098381]
[1731296500712,0.03317933,81317.0,81316.0,0.098381]
[1731296502196,0.03317933,81317.0,81311.0,0.005]
[1731296502397,0.03317933,81317.0,81314.0,0.098383]
[1731296502536,0.03317933,81317.0,81312.0,0.196772]
[1731296502741,0.03317933,81317.0,81311.0,0.005]
[1731296503153,0.03317933,81317.0,81316.0,0.098381]
[1731296503556,0.03317933,81317.0,81314.0,0.098383]
[1731296503762,0.03317933,81317.0,81312.0,0.098386]
[1731296503982,0.03317933,81317.0,81311.0,0.005]
[1731296504186,0.03317933,81317.0,81316.0,0.098381]
[1731296504848,0.03317933,81317.0,81311.0,0.005091]
[1731296505198,0.03317933,81317.0,81316.0,0.098381]
[1731296506942,0.03317933,81317.0,81313.0,0.005]
[1731296507140,0.03317933,81317.0,81316.0,0.098381]
[1731296507980,0.03317933,81317.0,81311.0,0.005091]
[1731296508185,0.03317933,81317.0,81316.0,0.098381]
[1731296514685,0.023,81317.0,81316.0,0.098381]
[1731296514879,0.001684,81318.0,81317.0,0.09838]
[1731296522387,0.001684,81318.0,81317.0,0.22432221]
[1731296522731,0.001684,81318.0,81317.0,0.39933737]
[1731296522940,0.001684,81318.0,81317.0,0.43570429]
[1731296523090,0.001684,81318.0,81317.0,0.39687794]
[1731296523526,0.001684,81318.0,81317.0,0.43367829]
[1731296523794,0.001684,81318.0,81317.0,0.43367856]
[1731296524115,0.001684,81318.0,81317.0,0.39687794]
[1731296530846,0.001684,81318.0,81317.0,0.34737794]
[1731296531038,0.001684,81318.0,81317.0,0.30902221]
[1731296531435,0.001684,81318.0,81317.0,0.22932221]
[1731296531850,0.001684,81318.0,81317.0,0.23178158]
[1731296532060,0.001684,81318.0,81317.0,0.22932221]
[1731296534055,0.001684,81318.0,81317.0,0.23178145]
[1731296534258,0.001684,81318.0,81317.0,0.22932221]
[1731296540780,0.0175613,81325.0,81324.0,0.005]
[1731296540980,0.0175613,81325.0,81324.0,0.36943571]
[1731296541189,0.0175613,81325.0,81324.0,0.44523571]
[1731296541568,0.0175613,81325.0,81324.0,0.44723571]
[1731296541741,0.0175613,81325.0,81324.0,0.59763571]
[1731296541945,3e-07,81325.0,81324.0,0.67461153]
[1731296542350,3e-07,81325.0,81324.0,0.67961153]
[1731296543314,3e-07,81325.0,81324.0,0.64088867]
[1731296543448,1e-06,81337.0,81336.0,0.571402]
[1731296543657,1e-06,81337.0,81336.0,0.59562171]
[1731296544357,1e-06,81337.0,81336.0,0.78099717]
[1731296544560,1e-06,81337.0,81336.0,0.79155951]
[1731296545301,1e-06,81337.0,81336.0,0.65143701]
[1731296547902,1e-06,81337.0,81336.0,0.64943701]
[1731296548820,1e-06,81337.0,81336.0,0.65143701]
[1731296549457,1e-06,81337.0,81336.0,0.79155951]
[1731296549635,1e-06,81337.0,81336.0,0.64943701]
[1731296550265,1e-06,81337.0,81336.0,0.59903701]
[1731296550491,1e-06,81337.0,81336.0,0.52323701]
[1731296551044,1e-06,81337.0,81336.0,0.52523701]
[1731296551391,1e-06,81337.0,81336.0,0.52323701]
[1731296553179,1e-06,81337.0,81336.0,0.52523701]
[1731296554189,1e-06,81337.0,81336.0,0.52323701]
[1731296554398,1e-06,81337.0,81336.0,0.79455951]
[1731296555146,1e-06,81337.0,81336.0,0.65443701]
[1731296555651,1e-06,81337.0,81336.0,0.41741498]
[1731296556289,1e-06,81337.0,81336.0,0.42241498]
[1731296556449,1e-06,81337.0,81336.0,0.41741498]
[1731296557051,1e-06,81337.0,81336.0,0.51741498]
[1731296557698,1e-06,81337.0,81336.0,0.52241498]
[1731296558659,1e-06,81337.0,81336.0,0.51741498]
[1731296567427,0.00884659,81337.0,81336.0,0.51741498]
[1731296567634,0.01039618,81337.0,81336.0,0.51741498]
[1731296571241,0.01039618,81340.0,81339.0,0.10253097]
[1731296571429,0.01039618,81340.0,81339.0,0.22847318]
[1731296580311,0.000697,81344.0,81342.0,0.10252797]
[1731296580540,0.000697,81344.0,81342.0,0.37127836]
[1731296580764,0.000697,81344.0,81342.0,0.36682001]
[1731296581441,0.050697,81347.0,81346.0,0.35464547]
[1731296581650,0.050697,81347.0,81346.0,0.51893751]
[1731296581876,0.050697,81347.0,81346.0,0.51693751]
[1731296582533,0.1289,81369.0,81346.0,0.51693751]
[1731296582534,1e-06,81352.0,81351.0,0.21451697]
[1731296582744,1e-06,81352.0,81351.0,0.50720901]
[1731296582953,1e-06,81352.0,81351.0,0.64733151]
[1731296583787,0.0825,81373.0,81372.0,0.10249097]
[1731296583996,0.23131221,81374.0,81373.0,0.00417797]
[1731296584277,0.23131221,81374.0,81373.0,0.22843218]
[1731296584278,0.000697,81374.0,81373.0,0.22843218]
[1731296584468,0.000697,81374.0,81373.0,0.23088978]
[1731296584676,0.000697,81374.0,81373.0,0.22843218]
[1731296586034,0.000697,81374.0,81373.0,0.36668605]
[1731296586263,0.000697,81374.0,81373.0,0.51264739]
[1731296586464,0.0792,81394.0,81393.0,0.10246597]
[1731296586667,0.0792,81394.0,81393.0,0.36853068]
[1731296587333,0.0792,81394.0,81393.0,0.22840818]
[1731296589497,0.047196,81399.0,81398.0,0.10245997]
[1731296589970,0.047196,81399.0,81398.0,0.22840218]
[1731296590177,0.000696,81399.0,81398.0,0.22840218]
[1731296590716,0.000696,81399.0,81398.0,0.33585904]
[1731296590918,0.000696,81399.0,81398.0,0.33340218]
[1731296592458,0.000696,81399.0,81398.0,0.32840218]
[1731296592659,0.147596,81399.0,81398.0,0.098282]
[1731296592976,0.15687292,81399.0,81398.0,0.098282]
[1731296593172,0.15687292,81399.0,81398.0,0.10245997]
[1731296593404,0.15687292,81399.0,81398.0,0.098282]
[1731296595013,0.15187292,81399.0,81398.0,0.098282]
[1731296595735,0.15187292,81399.0,81396.0,0.196568]
[1731296595736,0.023,81397.0,81396.0,0.10246197]
[1731296596564,0.03041061,81397.0,81396.0,0.10246197]
[1731296598320,0.03041061,81397.0,81389.0,0.196585]
[1731296598737,0.03041061,81397.0,81366.0,0.1401225]
[1731296598738,0.023,81391.0,81384.0,0.196596]
[1731296598922,0.023,81391.0,81383.0,0.00417797]
[1731296598923,0.023,81391.0,81388.0,0.28250821]
[1731296599123,0.023,81389.0,81388.0,0.098293]
[1731296599696,0.02474528,81389.0,81388.0,0.098293]
[1731296599850,0.023,81391.0,81388.0,0.098293]
[1731296600056,0.023,81391.0,81387.0,0.00417797]
[1731296600254,0.023,81391.0,81380.0,0.196606]
[1731296600255,0.00956177,81390.0,81386.0,0.00417797]
[1731296600558,0.023,81389.0,81386.0,0.00417797]
[1731296601166,0.023,81389.0,81385.0,0.00417797]
[1731296601664,0.023,81389.0,81384.0,0.00417797]
[1731296601869,0.023,81389.0,81386.0,0.098296]
[1731296602057,0.028,81389.0,81385.0,0.00417797]
[1731296602592,0.028,81389.0,81384.0,0.00417797]
[1731296602817,0.023,81387.0,81378.0,0.098306]
[1731296603023,0.023,81387.0,81379.0,0.18421521]
[1731296603250,0.023,81387.0,81380.0,0.098303]
[1731296603470,0.023,81387.0,81381.0,0.098303]
[1731296603732,0.023,81387.0,81379.0,0.38082421]
[1731296603932,0.023,81387.0,81379.0,0.18421521]
[1731296604135,0.023,81387.0,81381.0,0.196606]
[1731296604266,0.023,81387.0,81386.0,0.098297]
[1731296604472,0.0816,81398.0,81384.0,0.00417797]
[1731296604713,0.0816,81398.0,81397.0,0.098283]
[1731296605911,0.1046,81398.0,81397.0,0.098283]
[1731296606620,0.023,81397.0,81389.0,0.196585]
[1731296606826,0.023,81397.0,81395.0,0.098284]
[1731296606966,0.023,81397.0,81396.0,0.098284]
[1731296607807,0.03280889,81397.0,81396.0,0.098284]
[1731296608222,0.03084045,81397.0,81396.0,0.098284]
[1731296608626,0.023,81397.0,81396.0,0.098284]
[1731296612930,0.023,81397.0,81391.0,0.18839318]
[1731296613346,0.023,81397.0,81396.0,0.098284]
[1731296614914,0.023,81399.0,81398.0,0.098282]
[1731296615121,0.000896,81400.0,81393.0,0.196577]
[1731296615332,0.000896,81400.0,81399.0,0.098281]
[1731296622344,0.000896,81400.0,81399.0,0.10245897]
[1731296624886,0.000896,81400.0,81399.0,0.22840118]
[1731296629182,0.000896,81400.0,81399.0,0.23085788]
[1731296629993,0.000896,81400.0,81399.0,0.33285788]
[1731296630194,0.000896,81400.0,81399.0,0.37361]
[1731296630419,0.000896,81400.0,81399.0,0.49681]
[1731296631361,0.000896,81400.0,81399.0,0.50181]
[1731296631707,0.000896,81400.0,81399.0,0.49981]
[1731296632306,0.000896,81400.0,81399.0,0.49481]
[1731296632554,0.000896,81400.0,81399.0,0.49981]
[1731296632871,0.000896,81400.0,81399.0,0.49481]
[1731296633293,0.000896,81400.0,81399.0,0.49981]
[1731296633718,0.000896,81400.0,81399.0,0.49481]
[1731296633938,0.000896,81400.0,81399.0,0.48981]
[1731296634108,0.000896,81400.0,81399.0,0.44241]
[1731296634505,0.000896,81400.0,81399.0,0.40420118]
[1731296634708,0.000896,81400.0,81399.0,0.40920118]
[1731296634926,0.000896,81400.0,81399.0,0.40420118]
[1731296635088,0.000896,81400.0,81399.0,0.40920118]
[1731296635292,0.000896,81400.0,81399.0,0.44738315]
[1731296635507,0.000896,81400.0,81399.0,0.40920118]
[1731296636316,0.000896,81400.0,81399.0,0.40420118]
[1731296636491,0.000896,81400.0,81399.0,0.40920118]
[1731296636917,0.000896,81400.0,81399.0,0.54932368]
[1731296637116,0.000896,81400.0,81399.0,0.58752348]
[1731296637381,0.000896,81400.0,81399.0,0.54932368]
[1731296638162,0.000896,81400.0,81399.0,0.58754596]
[1731296639200,0.000896,81400.0,81399.0,0.58254596]
[1731296639387,0.000896,81400.0,81399.0,0.36662346]
[1731296642301,2.500896,81400.0,81399.0,0.36746546]
[1731296642535,2.50972871,81400.0,81399.0,0.36746546]
[1731296642759,2.51156694,81400.0,81399.0,0.36746546]
[1731296646239,0.01156694,81400.0,81399.0,0.32924318]
[1731296646613,0.000896,81400.0,81399.0,0.32924318]
[1731296649532,0.000896,81400.0,81399.0,0.32424318]
[1731296654862,0.00258,81400.0,81399.0,0.32424318]
[1731296659180,0.00258,81400.0,81399.0,0.36256325]
[1731296660929,0.0182573,81407.0,81402.0,0.002]
[1731296661169,0.000696,81419.0,81418.0,0.00417797]
[1731296661363,0.000696,81419.0,81418.0,0.26669825]
[1731296661605,0.01139751,81419.0,81418.0,0.26669825]
[1731296661824,0.000696,81419.0,81418.0,0.26669825]
[1731296662955,0.000696,81419.0,81418.0,0.27741366]
[1731296663640,0.000696,81419.0,81418.0,0.22837818]
[1731296663849,0.083496,81419.0,81418.0,0.10243597]
[1731296664098,0.083496,81419.0,81418.0,0.098258]
[1731296664320,0.083496,81419.0,81418.0,0.10243597]
[1731296664321,0.09430169,81419.0,81418.0,0.10243597]
[1731296664761,0.09430169,81419.0,81418.0,0.098258]
[1731296665181,0.11730169,81419.0,81416.0,0.196519]
[1731296665403,0.023,81418.0,81410.0,0.00417797]
[1731296665606,0.023,81418.0,81417.0,0.098259]
[1731296665872,0.023,81416.0,81406.0,0.00417797]
[1731296666074,0.023,81416.0,81404.0,0.18839318]
[1731296666305,0.023,81414.0,81410.0,0.098267]
[1731296666525,0.023,81414.0,81408.0,0.098269]
[1731296666739,0.023,81414.0,81412.0,0.098265]
[1731296666978,0.023,81414.0,81405.0,0.00417797]
[1731296667226,0.023,81414.0,81407.0,0.00417797]
[1731296667431,0.0451,81415.0,81407.0,0.00417797]
[1731296667647,0.0451,81415.0,81413.0,0.098263]
[1731296667877,0.00191027,81414.0,81408.0,0.09827]
[1731296668102,0.00191027,81414.0,81413.0,0.098264]
[1731296668316,0.0451,81415.0,81413.0,0.098264]
[1731296668520,0.00191027,81414.0,81407.0,0.00417797]
[1731296668742,0.00191027,81414.0,81412.0,0.098265]
[1731296668958,0.00191027,81414.0,81410.0,0.098267]
[1731296669191,0.0451,81415.0,81406.0,0.196545]
[1731296669421,0.0804,81414.0,81406.0,0.00417797]
[1731296669622,0.0804,81414.0,81409.0,0.098269]
[1731296669823,0.0804,81414.0,81406.0,0.00417797]
[1731296670027,0.0804,81414.0,81408.0,0.098269]
[1731296670232,0.01081048,81413.0,81406.0,0.20072097]
[1731296670418,0.0804,81414.0,81408.0,0.19654]
[1731296670615,0.0804,81414.0,81409.0,0.098268]
[1731296671902,0.0804,81414.0,81411.0,0.098265]
[1731296672330,0.0804,81414.0,81408.0,0.09827]
[1731296672546,0.0804,81414.0,81409.0,0.098268]
[1731296672748,0.0804,81414.0,81406.0,0.00417797]
[1731296672966,0.0804,81414.0,81407.0,0.09827]
[1731296673165,0.0804,81414.0,81406.0,0.20072297]
[1731296673379,0.0804,81414.0,81408.0,0.098269]
[1731296673930,0.0804,81414.0,81405.0,0.18839318]
[1731296674130,0.01081048,81413.0,81407.0,0.098271]
[1731296674332,0.01081048,81413.0,81405.0,0.18839318]
[1731296674333,0.0804,81414.0,81406.0,0.00417797]
[1731296674531,0.00887195,81413.0,81406.0,0.00417797]
[1731296674740,0.01081048,81413.0,81406.0,0.00417797]
[1731296675166,0.01081048,81413.0,81412.0,0.098265]
[1731296676909,0.01081048,81413.0,81410.0,0.098267]
[1731296677112,0.01081048,81413.0,81409.0,0.196538]
[1731296677358,0.01081048,81413.0,81412.0,0.098265]
[1731296677633,0.001684,81414.0,81413.0,0.098264]
[1731296678889,0.001684,81414.0,81411.0,0.098266]
[1731296679120,0.001684,81414.0,81408.0,0.0106957]
[1731296679325,0.001684,81414.0,81412.0,0.098265]
[1731296679754,0.001684,81414.0,81409.0,0.196538]
[1731296680672,0.001684,81414.0,81406.0,0.01090796]
[1731296681087,0.001684,81414.0,81412.0,0.00082]
[1731296681514,0.01078534,81413.0,81412.0,0.00082]
[1731296682390,0.01078534,81413.0,81412.0,0.099085]
[1731296683018,0.00191339,81413.0,81412.0,0.099085]
[1731296683212,0.001684,81414.0,81413.0,0.098264]
[1731296684967,0.001684,81414.0,81412.0,0.099085]
[1731296685172,0.001684,81414.0,81413.0,0.098264]
[1731296685749,0.001684,81414.0,81412.0,0.00082]
[1731296686342,0.01078534,81413.0,81412.0,0.00082]
[1731296686756,0.001684,81414.0,81412.0,0.00082]
[1731296686930,0.00191684,81413.0,81412.0,0.00082]
[1731296687172,0.001684,81414.0,81412.0,0.00082]
[1731296687372,0.01078837,81413.0,81412.0,0.00082]
[1731296687729,0.14068837,81413.0,81412.0,0.00082]
[1731296688593,0.14068837,81413.0,81399.0,0.000842]
[1731296688594,0.00082203,81400.0,81399.0,0.000842]
[1731296688832,0.25700203,81400.0,81399.0,0.000842]
[1731296689045,0.16798736,81400.0,81399.0,0.000842]
[1731296689474,0.26626736,81400.0,81399.0,0.000842]
[1731296694419,0.16798736,81400.0,81399.0,0.000842]
[1731296694898,0.26626736,81400.0,81399.0,0.000842]
[1731296695100,0.26617836,81400.0,81399.0,0.000842]
[1731296695489,0.26617836,81400.0,81399.0,0.36518771]
[1731296695490,0.00926533,81400.0,81399.0,0.36518771]
[1731296695835,0.18421521,81409.0,81399.0,0.26690671]
[1731296696045,0.18421521,81409.0,81406.0,0.098272]
[1731296696255,0.00720407,81408.0,81406.0,0.294815]
[1731296696465,0.00073303,81410.0,81406.0,0.098272]
[1731296696691,0.00073303,81410.0,81399.0,0.26690671]
[1731296696895,0.00073303,81410.0,81399.0,0.12678421]
[1731296700340,0.00073303,81410.0,81401.0,0.196557]
[1731296700556,0.00073303,81410.0,81402.0,0.196555]
[1731296701045,0.00073303,81410.0,81404.0,0.098274]
[1731296701709,0.00073303,81410.0,81405.0,0.098272]
[1731296702798,0.00073303,81412.0,81401.0,0.393114]
[1731296703015,0.00073303,81410.0,81402.0,0.196555]
[1731296703232,0.00073303,81410.0,81406.0,0.098272]
[1731296703454,0.0491,81413.0,81406.0,0.098272]
[1731296703660,0.00073303,81410.0,81406.0,0.098272]
[1731296703879,0.00073303,81411.0,81399.0,0.12678421]
[1731296704090,0.001684,81414.0,81403.0,0.00426697]
[1731296704288,0.00611739,81410.0,81404.0,0.12594221]
[1731296704498,0.001684,81414.0,81404.0,0.12594221]
[1731296704878,0.00611796,81413.0,81404.0,0.12594221]
[1731296707578,0.00611796,81413.0,81408.0,0.09827]
[1731296707800,0.00611796,81413.0,81406.0,0.196545]
[1731296708013,0.00611796,81413.0,81404.0,0.12594221]
[1731296708174,0.0779,81411.0,81399.0,0.000842]
[1731296708382,0.0453,81410.0,81399.0,0.12678421]
[1731296708604,0.05144042,81410.0,81399.0,0.12678421]
[1731296708833,0.20721521,81409.0,81399.0,0.000842]
[1731296708978,0.00073303,81404.0,81399.0,0.000842]
[1731296709177,0.098279,81401.0,81399.0,0.000842]
[1731296709380,0.00073303,81404.0,81399.0,0.000842]
[1731296709381,0.00613852,81400.0,81399.0,0.000842]
[1731296709725,0.023,81402.0,81399.0,0.000842]
[1731296709930,0.00613852,81400.0,81399.0,0.000842]
[1731296710174,0.02373303,81404.0,81399.0,0.000842]
[1731296710394,0.00613852,81400.0,81399.0,0.000842]
[1731296710592,0.00073303,81404.0,81399.0,0.000842]
[1731296710801,0.01168891,81404.0,81399.0,0.000842]
[1731296711036,0.00613909,81403.0,81399.0,0.000842]
[1731296711302,0.00613909,81403.0,81402.0,0.098277]
[1731296711538,0.00613909,81403.0,81402.0,0.10254397]
[1731296711764,0.001684,81414.0,81413.0,0.098264]
[1731296711981,0.001684,81414.0,81412.0,0.098265]
[1731296712206,0.00780151,81414.0,81410.0,0.098267]
[1731296712418,0.00780151,81414.0,81407.0,0.098271]
[1731296712641,0.00780151,81414.0,81407.0,0.09827]
[1731296712869,0.00780151,81414.0,81411.0,0.098266]
[1731296713072,0.001684,81414.0,81405.0,0.196548]
[1731296713278,0.00611732,81413.0,81403.0,0.196552]
[1731296713481,0.001684,81414.0,81403.0,0.196552]
[1731296713482,0.001684,81414.0,81412.0,0.098265]
[1731296713948,0.001684,81414.0,81413.0,0.098264]
[1731296714146,0.001684,81414.0,81409.0,0.196537]
[1731296714147,0.00611732,81413.0,81412.0,0.098265]
[1731296714288,0.001684,81414.0,81413.0,0.098264]
[1731296715537,0.001684,81414.0,81403.0,0.12594221]
[1731296715743,0.001684,81414.0,81405.0,0.196548]
[1731296715944,0.001684,81414.0,81410.0,0.098266]
[1731296716338,0.00611732,81413.0,81408.0,0.09827]
[1731296716565,0.00611732,81413.0,81409.0,0.196538]
[1731296716795,0.001684,81414.0,81409.0,0.196538]
[1731296717001,0.001684,81414.0,81412.0,0.098265]
[1731296717209,0.00615172,81413.0,81412.0,0.098265]
[1731296717614,0.001684,81414.0,81413.0,0.098264]
[1731296717861,0.00783591,81414.0,81413.0,0.098264]
[1731296718067,0.001684,81414.0,81413.0,0.098264]
[1731296718294,0.00783591,81414.0,81413.0,0.098264]
[1731296718505,0.001684,81414.0,81413.0,0.098264]
[1731296718722,0.00783591,81414.0,81413.0,0.098264]
[1731296718933,0.001684,81414.0,81413.0,0.098264]
[1731296719145,0.00783591,81414.0,81413.0,0.098264]
[1731296719381,0.001684,81414.0,81413.0,0.098264]
[1731296719584,0.00783591,81414.0,81413.0,0.098264]
[1731296719792,0.001684,81414.0,81413.0,0.098264]
[1731296719998,0.00783591,81414.0,81413.0,0.098264]
[1731296720233,0.001684,81414.0,81413.0,0.098264]
[1731296720695,0.00783591,81414.0,81413.0,0.098264]
[1731296720917,0.001684,81414.0,81413.0,0.098264]
[1731296721615,0.001684,81414.0,81413.0,0.22420621]
[1731296722027,0.001684,81414.0,81413.0,0.22666264]
[1731296722483,0.001684,81414.0,81413.0,0.23730663]
[1731296725372,0.001684,81414.0,81413.0,0.2415736]
[1731296726847,0.001684,81414.0,81413.0,0.23911717]
[1731296729748,0.001684,81414.0,81413.0,0.24111717]
[1731296729948,0.001684,81414.0,81413.0,0.34357329]
[1731296730198,0.001684,81414.0,81413.0,0.37929944]
[1731296730596,0.001684,81414.0,81413.0,0.37729944]
[1731296730999,0.001684,81414.0,81413.0,0.33911717]
[1731296732021,0.00841085,81414.0,81413.0,0.33911717]
[1731296734888,0.00841085,81414.0,81413.0,0.22420621]
[1731296734889,0.19262606,81414.0,81413.0,0.22420621]
[1731296735106,0.00841085,81414.0,81413.0,0.22420621]
[1731296735314,0.00841085,81414.0,81413.0,0.22847318]
[1731296735745,0.00841085,81415.0,81414.0,0.098263]
[1731296735916,0.00841085,81415.0,81414.0,0.22420521]
[1731296738089,0.00841085,81415.0,81414.0,0.22847218]
[1731296738704,0.00841085,81415.0,81414.0,0.22420521]
[1731296740222,0.00841085,81415.0,81414.0,0.22847218]
[1731296741038,0.00841085,81415.0,81414.0,0.22420521]
[1731296741199,0.00841085,81415.0,81414.0,0.22847218]
[1731296745209,0.00841085,81415.0,81414.0,0.22420521]
[1731296746510,0.00841085,81415.0,81414.0,0.30407218]
[1731296747443,0.00841085,81415.0,81414.0,0.44419468]
[1731296748972,0.00841085,81415.0,81414.0,0.54419468]
[1731296749167,0.00841085,81415.0,81414.0,0.40407218]
[1731296749574,0.00841085,81415.0,81414.0,0.4422572]
[1731296749958,0.00841085,81415.0,81414.0,0.40407218]
[1731296750092,0.00841085,81415.0,81414.0,0.54419468]
[1731296750489,0.00841085,81415.0,81414.0,0.58237931]
[1731296750722,0.00841085,81415.0,81414.0,0.54419468]
[1731296750933,0.00841085,81415.0,81414.0,0.54619468]
[1731296751351,0.00841085,81415.0,81414.0,0.58437959]
[1731296751826,0.01009685,81415.0,81414.0,0.58237959]
[1731296753185,0.01009685,81415.0,81414.0,0.54419468]
[1731296756300,0.00073303,81440.0,81414.0,0.54419468]
[1731296756301,0.18467521,81450.0,81441.0,0.005]
[1731296756514,0.18467521,81450.0,81414.0,0.36606471]
[1731296756515,0.18467521,81450.0,81443.0,0.00426697]
[1731296756729,0.00566691,81447.0,81444.0,0.12594221]
[1731296756931,0.18467521,81450.0,81444.0,0.12594221]
[1731296757144,0.00046,81450.0,81444.0,0.12594221]
[1731296757379,0.00046,81450.0,81446.0,0.1401225]
[1731296757816,0.078356,81458.0,81446.0,0.1401225]
[1731296758300,0.01282581,81459.0,81448.0,0.005]
[1731296758503,0.01282581,81459.0,81449.0,0.12594221]
[1731296759952,0.01282581,81459.0,81458.0,0.09821]
[1731296760362,0.00782581,81459.0,81458.0,0.09821]
[1731296760590,0.04923303,81464.0,81449.0,0.12594221]
[1731296760821,0.08058,81463.0,81462.0,0.098205]
[1731296761023,0.08058,81463.0,81449.0,0.32238321]
[1731296761433,0.08058,81463.0,81461.0,0.098205]
[1731296761764,0.1291,81462.0,81460.0,0.098206]
[1731296761978,0.1291,81462.0,81449.0,0.32238321]
[1731296762183,0.1291,81462.0,81458.0,0.098209]
[1731296762383,0.1291,81462.0,81449.0,0.32238321]
[1731296762384,0.1291,81462.0,81451.0,0.196437]
[1731296762610,0.1291,81462.0,81458.0,0.098209]
[1731296762846,0.1291,81462.0,81456.0,0.196424]
[1731296762983,0.1291,81462.0,81451.0,0.12594221]
[1731296763239,0.1291,81462.0,81461.0,0.098206]
[1731296764470,0.1291,81462.0,81459.0,0.098208]
[1731296764684,0.1291,81462.0,81457.0,0.196421]
[1731296764903,8e-05,81463.0,81462.0,0.098205]